[Event "Régional Jeunes Occitanie 2024"]
[Site "L'Isle Jourdain, France"]
[Date "2024.02.23"]
[Round "5.4"]
[White "PERROUIN, Alexian"]
[Black "MOREL, Yohann"]
[Result "1-0"]
[TimeControl "1h30 + 30s/cps"]
[WhiteElo "1829"]
[BlackElo "1647"]

1. e4 {[%clk 01:30:57]} {[%emt 00:00:03]} e5 {[%clk 01:30:34]} {[%emt
00:00:27]} 2. Nf3 {[%clk 01:31:23]} {[%emt 00:00:04]} Nc6 {[%clk 01:30:57]}
{[%emt 00:00:07]} 3. Bb5 {[%clk 01:31:48]} {[%emt 00:00:04]} a6 {[%clk
01:31:25]} {[%emt 00:00:03]} 4. Ba4 {[%clk 01:32:14]} {[%emt 00:00:05]} Nf6
{[%clk 01:31:52]} {[%emt 00:00:03]} 5. O-O {[%clk 01:32:38]} {[%emt 00:00:06]}
Be7 {[%clk 01:32:20]} {[%emt 00:00:02]} 6. d3 {[%clk 01:32:58]} {[%emt
00:00:10]} b5 {[%clk 01:32:46]} {[%emt 00:00:05]} 7. Bb3 {[%clk 01:33:25]}
{[%emt 00:00:03]} d6 {[%clk 01:33:12]} {[%emt 00:00:03]} 8. a4 {[%clk
01:33:14]} {[%emt 00:00:41]} Bb7 {[%clk 01:30:25]} {[%emt 00:03:17]} 9. Nc3
{[%clk 01:33:04]} {[%emt 00:00:40]} b4 {[%clk 01:29:13]} {[%emt 00:01:42]} 10.
Nd5 {[%clk 01:32:33]} {[%emt 00:01:01]} O-O {[%clk 01:16:19]} {[%emt 00:13:24]}
11. a5 {[%clk 01:25:09]} {[%emt 00:07:53]} Nxd5 {[%clk 01:15:21]} {[%emt
00:01:29]} 12. Bxd5 {[%clk 01:25:23]} {[%emt 00:00:17]} Nxa5 {[%clk 01:12:45]}
{[%emt 00:03:05]} 13. Bxb7 {[%clk 00:54:30]} {[%emt 00:31:23]} Nxb7 {[%clk
01:13:10]} {[%emt 00:00:06]} 14. d4 {[%clk 00:54:55]} {[%emt 00:00:05]} exd4
{[%clk 01:01:54]} {[%emt 00:11:47]} 15. Qxd4 {[%clk 00:55:01]} {[%emt
00:00:24]} c5 {[%clk 00:54:47]} {[%emt 00:07:37]} 16. Qd5 {[%clk 00:55:20]}
{[%emt 00:00:10]} Qc7 {[%clk 00:54:00]} {[%emt 00:01:17]} 17. Rd1 {[%clk
00:52:25]} {[%emt 00:03:25]} a5 {[%clk 00:52:43]} {[%emt 00:01:48]} 18. Bf4
{[%clk 00:40:12]} {[%emt 00:12:43]} Ra6 {[%clk 00:48:22]} {[%emt 00:04:51]} 19.
Qc4 {[%clk 00:27:54]} {[%emt 00:12:48]} Qc6 {[%clk 00:34:26]} {[%emt 00:14:26]}
20. Rd5 {[%clk 00:23:21]} {[%emt 00:05:02]} a4 {[%clk 00:27:58]} {[%emt
00:06:59]} 21. e5 {[%clk 00:15:07]} {[%emt 00:08:44]} Rd8 {[%clk 00:07:16]}
{[%emt 00:31:33]} 22. exd6 {[%clk 00:12:52]} Bxd6 {[%clk 00:06:15]} 23. Bxd6
{[%clk 00:10:10]} Rxd6 {[%clk 00:05:58]} 24. Rf5 {[%clk 00:09:54]} Qd7 {[%clk
00:05:45]} 25. Re1 {[%clk 00:09:07]} {[%emt 00:00:40]} h6 {[%clk 00:04:23]}
{[%emt 00:01:52]} 26. Rxf7 {[%clk 00:06:37]} {[%emt 00:02:59]} Na5 {[%clk
00:03:49]} {[%emt 00:01:04]} 27. Qxa6 {[%clk 00:06:33]} {[%emt 00:00:35]} Kxf7
{[%clk 00:03:56]} {[%emt 00:00:23]} 28. Qxa5 {[%clk 00:06:27]} {[%emt
00:00:36]} Rd1 {[%clk 00:04:08]} {[%emt 00:00:18]} 29. Qxc5 {[%clk 00:06:11]}
{[%emt 00:02:43]} Rxe1+ {[%clk 00:03:05]} 30. Nxe1 {[%clk 00:06:36]} Qe7 {[%clk
00:03:33]} 31. Qxe7+ {[%clk 00:05:42]} {[%emt 00:01:08]} Kxe7 {[%clk 00:03:59]}
{[%emt 00:00:04]} 32. Nd3 {[%clk 00:06:04]} {[%emt 00:00:07]} a3 {[%clk
00:04:17]} {[%emt 00:00:12]} 33. bxa3 {[%clk 00:06:26]} {[%emt 00:00:07]} 1-0

[Event "Régional Jeunes Occitanie 2024"]
[Site "L'Isle Jourdain, France"]
[Date "2024.02.23"]
[Round "5.5"]
[White "ABELA, Ronan"]
[Black "WITTMANN, Paul"]
[Result "0-1"]
[TimeControl "1h30 + 30s/cps"]
[WhiteElo "1295"]
[BlackElo "1536"]

1. e4 {[%clk 01:30:57]} {[%emt 00:00:02]} c5 {[%clk 01:29:45]} {[%emt
00:01:16]} 2. Nf3 {[%clk 01:31:14]} {[%emt 00:00:14]} e6 {[%clk 01:29:36]}
{[%emt 00:00:38]} 3. d4 {[%clk 01:31:25]} {[%emt 00:00:19]} cxd4 {[%clk
01:29:29]} {[%emt 00:00:37]} 4. Nxd4 {[%clk 01:31:47]} {[%emt 00:00:08]} Nf6
{[%clk 01:29:22]} {[%emt 00:00:36]} 5. Bd3 {[%clk 01:27:43]} {[%emt 00:04:35]}
Nc6 {[%clk 01:24:43]} {[%emt 00:05:09]} 6. Nxc6 {[%clk 01:26:29]} {[%emt
00:01:45]} bxc6 {[%clk 01:24:40]} {[%emt 00:00:33]} 7. Be3 {[%clk 01:24:32]}
{[%emt 00:02:24]} Qc7 {[%clk 01:20:55]} {[%emt 00:04:18]} 8. O-O {[%clk
01:18:31]} {[%emt 00:06:30]} d5 {[%clk 01:15:47]} {[%emt 00:05:38]} 9. exd5
{[%clk 01:16:36]} {[%emt 00:02:25]} cxd5 {[%clk 01:16:04]} {[%emt 00:00:14]} 10.
Nd2 {[%clk 01:10:33]} {[%emt 00:06:33]} Bd6 {[%clk 01:14:43]} {[%emt 00:01:50]}
11. h3 {[%clk 01:10:34]} {[%emt 00:00:29]} O-O {[%clk 01:13:21]} {[%emt
00:01:51]} 12. c3 {[%clk 01:08:03]} {[%emt 00:03:02]} e5 {[%clk 01:06:39]}
{[%emt 00:07:12]} 13. Qe2 {[%clk 01:01:30]} {[%emt 00:07:01]} Nd7 {[%clk
01:02:44]} {[%emt 00:04:26]} 14. Nb3 {[%clk 00:55:49]} {[%emt 00:06:11]} f5
{[%clk 00:59:30]} {[%emt 00:03:44]} 15. f4 {[%clk 00:51:37]} {[%emt 00:04:42]}
exf4 {[%clk 00:52:01]} {[%emt 00:07:59]} 16. Bd4 {[%clk 00:51:17]} {[%emt
00:00:50]} Nf6 {[%clk 00:50:34]} {[%emt 00:01:58]} 17. Bxf6 {[%clk 00:46:56]}
{[%emt 00:04:51]} Rxf6 {[%clk 00:49:19]} {[%emt 00:01:45]} 18. Nd4 {[%clk
00:44:31]} {[%emt 00:02:54]} Rb8 {[%clk 00:34:43]} {[%emt 00:15:07]} 19. Kh1
{[%clk 00:38:17]} {[%emt 00:06:44]} Bd7 {[%clk 00:32:54]} {[%emt 00:02:19]} 20.
Qc2 {[%clk 00:33:28]} {[%emt 00:05:18]} g6 {[%clk 00:30:29]} {[%emt 00:02:55]}
21. Rfe1 {[%clk 00:30:07]} {[%emt 00:03:51]} Rff8 {[%clk 00:29:09]} {[%emt
00:01:50]} 22. Re2 {[%clk 00:27:00]} {[%emt 00:03:37]} Rfe8 {[%clk 00:27:52]}
{[%emt 00:01:47]} 23. Rae1 {[%clk 00:27:07]} {[%emt 00:00:23]} Rxe2 {[%clk
00:27:02]} {[%emt 00:01:19]} 24. Rxe2 {[%clk 00:27:15]} {[%emt 00:00:23]} Re8
{[%clk 00:27:20]} {[%emt 00:00:12]} 25. Qb3 {[%clk 00:26:22]} {[%emt 00:01:23]}
Rxe2 {[%clk 00:23:32]} {[%emt 00:04:18]} 26. Qxd5+ {[%clk 00:24:30]} {[%emt
00:02:22]} Be6 {[%clk 00:23:36]} {[%emt 00:00:26]} 27. Qa8+ {[%clk 00:22:55]}
{[%emt 00:02:05]} Qb8 {[%clk 00:23:51]} {[%emt 00:00:16]} 28. Qxb8+ {[%clk
00:23:08]} {[%emt 00:00:16]} Bxb8 {[%clk 00:24:15]} {[%emt 00:00:05]} 29. Bxe2
{[%clk 00:23:23]} {[%emt 00:00:16]} Bxa2 {[%clk 00:24:33]} {[%emt 00:00:13]} 30.
b3 {[%clk 00:23:04]} {[%emt 00:00:48]} Be5 {[%clk 00:23:25]} {[%emt 00:01:38]}
31. Bc4+ {[%clk 00:21:13]} {[%emt 00:02:22]} Kf8 {[%clk 00:21:45]} {[%emt
00:02:09]} 32. Ne2 {[%clk 00:20:13]} {[%emt 00:01:29]} a5 {[%clk 00:20:15]}
{[%emt 00:02:00]} 33. Nc1 {[%clk 00:19:43]} {[%emt 00:01:00]} Bb1 {[%clk
00:20:07]} {[%emt 00:00:38]} 34. Ne2 {[%clk 00:20:00]} {[%emt 00:00:13]} Be4
{[%clk 00:20:11]} {[%emt 00:00:26]} 35. Kg1 {[%clk 00:18:30]} {[%emt 00:15:08]}
f3 {[%clk 00:19:31]} 36. gxf3 {[%clk 00:18:51]} Bxf3 {[%clk 00:19:55]} 37. Nd4
{[%clk 00:18:54]} Bxd4+ {[%clk 00:16:40]} 38. cxd4 {[%clk 00:19:15]} Be4 {[%clk
00:16:59]} 39. Kf2 {[%clk 00:19:14]} Ke7 {[%clk 00:17:07]} 40. h4 {[%clk
00:19:22]} h6 {[%clk 00:16:53]} 41. Kg3 {[%clk 00:19:14]} g5 {[%clk 00:17:02]}
42. hxg5 {[%clk 00:19:24]} hxg5 {[%clk 00:17:27]} 43. Bg8 {[%clk 00:19:07]} Kd6
{[%clk 00:17:43]} 0-1

[Event "Régional Jeunes Occitanie 2024"]
[Site "L'Isle Jourdain, France"]
[Date "2024.02.23"]
[Round "5.6"]
[White "DESPAUX, Axel"]
[Black "LAVAL, Nolan"]
[Result "0-1"]
[TimeControl "1h30 + 30s/cps"]
[WhiteElo "1448"]
[BlackElo "1454"]

1. e4 {[%clk 01:30:58]} {[%emt 00:00:02]} c5 {[%clk 01:30:55]} {[%emt
00:00:06]} 2. Nc3 {[%clk 01:31:24]} {[%emt 00:00:04]} e6 {[%clk 01:30:47]}
{[%emt 00:00:37]} 3. Nf3 {[%clk 01:31:11]} {[%emt 00:00:43]} Nc6 {[%clk
01:30:56]} {[%emt 00:00:21]} 4. d4 {[%clk 01:31:35]} {[%emt 00:00:06]} cxd4
{[%clk 01:31:14]} {[%emt 00:00:12]} 5. Nxd4 {[%clk 01:31:58]} {[%emt 00:00:07]}
Nf6 {[%clk 01:31:05]} {[%emt 00:00:39]} 6. Be2 {[%clk 01:32:10]} {[%emt
00:00:18]} Bb4 {[%clk 01:30:27]} {[%emt 00:01:09]} 7. O-O {[%clk 01:32:26]}
{[%emt 00:00:13]} Bxc3 {[%clk 01:27:55]} {[%emt 00:03:01]} 8. bxc3 {[%clk
01:32:50]} {[%emt 00:00:07]} Nxd4 {[%clk 01:13:18]} {[%emt 00:15:07]} 9. Qxd4
{[%clk 01:32:18]} {[%emt 00:01:01]} Qe7 {[%clk 01:08:35]} {[%emt 00:05:13]} 10.
e5 {[%clk 01:29:10]} {[%emt 00:03:39]} Nd5 {[%clk 01:07:14]} {[%emt 00:01:51]}
11. a4 {[%clk 01:27:38]} {[%emt 00:02:02]} O-O {[%clk 01:03:09]} {[%emt
00:04:35]} 12. Ba3 {[%clk 01:27:42]} {[%emt 00:00:26]} Qg5 {[%clk 01:02:30]}
{[%emt 00:01:08]} 13. Bxf8 {[%clk 01:27:06]} {[%emt 00:01:07]} Kxf8 {[%clk
01:02:20]} {[%emt 00:00:40]} 14. Bf3 {[%clk 01:27:11]} {[%emt 00:00:25]} Ne7
{[%clk 01:01:59]} {[%emt 00:00:51]} 15. Qd6 {[%clk 01:26:24]} {[%emt 00:01:17]}
Ke8 {[%clk 01:01:27]} {[%emt 00:01:02]} 16. Rab1 {[%clk 01:23:59]} {[%emt
00:02:56]} Nc6 {[%clk 00:59:42]} {[%emt 00:02:15]} 17. Bxc6 {[%clk 01:23:26]}
{[%emt 00:01:03]} dxc6 {[%clk 00:59:53]} {[%emt 00:00:18]} 18. Rfd1 {[%clk
01:23:36]} {[%emt 00:00:20]} Qe7 {[%clk 01:00:05]} {[%emt 00:00:17]} 19. a5
{[%clk 01:21:46]} {[%emt 00:02:22]} Qxd6 {[%clk 00:59:16]} {[%emt 00:01:19]} 20.
Rxd6 {[%clk 01:21:51]} {[%emt 00:00:25]} a6 {[%clk 00:56:52]} {[%emt 00:02:54]}
21. Rb4 {[%clk 01:20:29]} {[%emt 00:01:52]} Ke7 {[%clk 00:56:24]} {[%emt
00:00:58]} 22. Rh4 {[%clk 01:15:06]} {[%emt 00:05:53]} h6 {[%clk 00:53:57]}
{[%emt 00:02:57]} 23. Rg4 {[%clk 01:13:37]} {[%emt 00:01:59]} g6 {[%clk
00:54:15]} {[%emt 00:00:12]} 24. Rh4 {[%clk 01:12:44]} {[%emt 00:01:23]} Bd7
{[%clk 00:52:57]} {[%emt 00:01:48]} 25. Rhd4 {[%clk 01:10:11]} {[%emt
00:03:03]} Be8 {[%clk 00:52:07]} {[%emt 00:01:21]} 26. Rb4 {[%clk 01:10:08]}
{[%emt 00:00:33]} Rb8 {[%clk 00:51:52]} {[%emt 00:00:45]} 27. f4 {[%clk
01:10:05]} {[%emt 00:00:32]} f6 {[%clk 00:51:13]} {[%emt 00:01:09]} 28. Rd3
{[%clk 01:09:44]} {[%emt 00:00:51]} f5 {[%clk 00:50:23]} {[%emt 00:01:21]} 29.
h3 {[%clk 01:09:29]} {[%emt 00:00:45]} c5 {[%clk 00:49:25]} {[%emt 00:01:28]}
30. Rb6 {[%clk 01:09:19]} {[%emt 00:00:40]} Bc6 {[%clk 00:48:56]} {[%emt
00:00:59]} 31. c4 {[%clk 01:07:32]} {[%emt 00:02:16]} Rd8 {[%clk 00:47:42]}
{[%emt 00:01:45]} 32. Kf2 {[%clk 01:07:24]} {[%emt 00:00:38]} Rd7 {[%clk
00:45:54]} {[%emt 00:02:17]} 33. g4 {[%clk 01:03:45]} {[%emt 00:04:10]} Be4
{[%clk 00:45:13]} {[%emt 00:01:11]} 34. Rxd7+ {[%clk 01:03:11]} {[%emt
00:01:04]} Kxd7 {[%clk 00:45:06]} {[%emt 00:00:37]} 35. c3 {[%clk 01:00:50]}
{[%emt 00:02:51]} Bc6 {[%clk 00:44:11]} {[%emt 00:01:24]} 36. Kg3 {[%clk
00:59:13]} {[%emt 00:02:09]} Ke7 {[%clk 00:33:13]} {[%emt 00:11:26]} 37. Kh4
{[%clk 00:58:43]} {[%emt 00:01:01]} Bf3 {[%clk 00:31:02]} {[%emt 00:02:40]} 38.
Kg3 {[%clk 00:56:32]} {[%emt 00:02:41]} Bc6 {[%clk 00:31:04]} {[%emt 00:00:28]}
39. Rb1 {[%clk 00:54:47]} {[%emt 00:02:15]} Be4 {[%clk 00:29:21]} {[%emt
00:02:12]} 40. Kf2 {[%clk 00:54:13]} {[%emt 00:01:06]} Bxb1 {[%clk 00:29:30]}
{[%emt 00:00:21]} 41. gxf5 {[%clk 00:54:20]} {[%emt 00:00:23]} exf5 {[%clk
00:29:32]} {[%emt 00:00:27]} 42. h4 {[%clk 00:53:55]} {[%emt 00:00:55]} Bd3
{[%clk 00:29:35]} {[%emt 00:00:26]} 43. Ke3 {[%clk 00:54:02]} {[%emt 00:00:23]}
Bxc4 {[%clk 00:29:44]} {[%emt 00:00:21]} 44. Kd2 {[%clk 00:54:19]} {[%emt
00:00:13]} Ke6 {[%clk 00:29:51]} {[%emt 00:00:24]} 45. Ke3 {[%clk 00:53:56]}
{[%emt 00:00:53]} Kd5 {[%clk 00:30:06]} {[%emt 00:00:14]} 46. Kf3 {[%clk
00:53:46]} {[%emt 00:00:40]} h5 {[%clk 00:30:12]} {[%emt 00:00:24]} 47. Ke3
{[%clk 00:53:58]} {[%emt 00:00:18]} Kc6 {[%clk 00:30:35]} {[%emt 00:00:06]} 48.
Kd2 {[%clk 00:54:25]} {[%emt 00:00:04]} Kb5 {[%clk 00:30:48]} {[%emt 00:00:17]}
49. Kc2 {[%clk 00:54:46]} {[%emt 00:00:09]} Kxa5 {[%clk 00:31:11]} {[%emt
00:00:08]} 50. Kc1 {[%clk 00:54:28]} {[%emt 00:00:48]} b5 {[%clk 00:31:24]}
{[%emt 00:00:17]} 51. Kb1 {[%clk 00:54:31]} {[%emt 00:00:26]} b4 {[%clk
00:31:41]} {[%emt 00:00:13]} 52. Kb2 {[%clk 00:54:33]} {[%emt 00:00:29]} bxc3+
{[%clk 00:32:05]} {[%emt 00:00:06]} 53. Kxc3 {[%clk 00:54:59]} {[%emt
00:00:04]} Bf7 {[%clk 00:32:18]} {[%emt 00:00:15]} 54. Kc2 {[%clk 00:55:15]}
{[%emt 00:00:16]} Kb4 {[%clk 00:32:41]} {[%emt 00:00:07]} 55. Kb2 {[%clk
00:55:36]} {[%emt 00:00:10]} a5 {[%clk 00:33:03]} {[%emt 00:00:07]} 56. e6
{[%clk 00:55:56]} {[%emt 00:00:10]} Bxe6 {[%clk 00:33:21]} {[%emt 00:00:13]} 57.
Kc2 {[%clk 00:56:17]} {[%emt 00:00:09]} a4 {[%clk 00:33:41]} {[%emt 00:00:10]}
58. Kb2 {[%clk 00:56:41]} {[%emt 00:00:06]} a3+ {[%clk 00:34:00]} {[%emt
00:00:11]} 59. Kc2 {[%clk 00:56:38]} {[%emt 00:00:33]} a2 {[%clk 00:34:07]}
{[%emt 00:00:23]} 60. Kb2 {[%clk 00:57:01]} {[%emt 00:00:07]} a1=Q+ {[%clk
00:34:22]} {[%emt 00:00:14]} 61. Kxa1 {[%clk 00:57:21]} {[%emt 00:00:10]} Kc3
{[%clk 00:34:46]} {[%emt 00:01:06]} 0-1

[Event "Régional Jeunes Occitanie 2024"]
[Site "L'Isle Jourdain, France"]
[Date "2024.02.23"]
[Round "5.2"]
[White "BALDASSARI, Milan"]
[Black "Collas, Anthony"]
[Result "0-1"]
[TimeControl "1h30 + 30s/cps"]
[WhiteElo "1357"]
[BlackElo "1439"]

1. b3 {[%clk 01:30:58]} {[%emt 00:00:02]} d5 {[%clk 01:30:48]} {[%emt
00:00:13]} 2. Bb2 {[%clk 01:31:25]} {[%emt 00:00:04]} Nc6 {[%clk 01:30:38]}
{[%emt 00:00:40]} 3. e3 {[%clk 01:31:46]} {[%emt 00:00:09]} e5 {[%clk
01:30:44]} {[%emt 00:00:23]} 4. Bb5 {[%clk 01:32:11]} {[%emt 00:00:06]} e4
{[%clk 01:30:13]} {[%emt 00:01:01]} 5. d3 {[%clk 01:32:07]} {[%emt 00:00:34]}
Bd7 {[%clk 01:27:15]} {[%emt 00:03:28]} 6. dxe4 {[%clk 01:30:38]} {[%emt
00:01:59]} dxe4 {[%clk 01:27:34]} {[%emt 00:00:10]} 7. Nd2 {[%clk 01:30:59]}
{[%emt 00:00:09]} Qg5 {[%clk 01:22:00]} {[%emt 00:06:03]} 8. Bxc6 {[%clk
01:30:16]} {[%emt 00:01:14]} Bxc6 {[%clk 01:22:18]} {[%emt 00:00:12]} 9. g3
{[%clk 01:29:39]} {[%emt 00:01:08]} O-O-O {[%clk 01:21:49]} {[%emt 00:00:58]}
10. Nh3 {[%clk 01:29:03]} {[%emt 00:01:05]} Qf5 {[%clk 01:18:03]} {[%emt
00:04:16]} 11. Nf4 {[%clk 01:29:01]} {[%emt 00:00:33]} Nf6 {[%clk 01:16:05]}
{[%emt 00:02:28]} 12. Qe2 {[%clk 01:28:44]} {[%emt 00:00:47]} Bb4 {[%clk
01:08:10]} {[%emt 00:08:26]} 13. O-O-O {[%clk 01:27:51]} {[%emt 00:01:22]} Bb5
{[%clk 01:07:27]} {[%emt 00:01:13]} 14. c4 {[%clk 01:27:43]} {[%emt 00:00:39]}
Bc6 {[%clk 01:06:38]} {[%emt 00:01:18]} 15. Rhg1 {[%clk 01:25:14]} {[%emt
00:02:59]} Qa5 {[%clk 00:54:35]} {[%emt 00:12:30]} 16. Kc2 {[%clk 01:24:03]}
{[%emt 00:01:46]} Rd7 {[%clk 00:50:01]} {[%emt 00:05:03]} 17. a3 {[%clk
01:24:10]} {[%emt 00:00:23]} Bxa3 {[%clk 00:49:05]} {[%emt 00:01:26]} 18. Bxf6
{[%clk 01:21:56]} {[%emt 00:02:43]} gxf6 {[%clk 00:48:53]} {[%emt 00:00:42]} 19.
f3 {[%clk 01:20:50]} {[%emt 00:01:37]} exf3 {[%clk 00:47:35]} {[%emt 00:01:48]}
20. Nxf3 {[%clk 01:21:11]} {[%emt 00:00:09]} Be4+ {[%clk 00:47:48]} {[%emt
00:00:18]} 21. Nd3 {[%clk 01:21:31]} {[%emt 00:00:10]} Rhd8 {[%clk 00:44:19]}
{[%emt 00:03:59]} 22. Nfe1 {[%clk 01:20:10]} {[%emt 00:01:50]} Bb4 {[%clk
00:43:11]} {[%emt 00:01:38]} 23. Kb2 {[%clk 01:19:52]} {[%emt 00:00:49]} Bc3+
{[%clk 00:41:11]} {[%emt 00:02:29]} 24. Kc2 {[%clk 01:19:58]} {[%emt 00:00:24]}
Qa2+ {[%clk 00:40:46]} {[%emt 00:00:50]} 0-1

[Event "Régional Jeunes Occitanie 2024"]
[Site "L'Isle Jourdain, France"]
[Date "2024.02.23"]
[Round "5.7"]
[White "VALMIR, Clovis"]
[Black "BAUER, Pierre"]
[Result "0-1"]
[TimeControl "1h30 + 30s/cps"]
[WhiteElo "1390"]
[BlackElo "1765"]

1. e4 {[%clk 01:30:56]} {[%emt 00:00:04]} c5 {[%clk 01:30:39]} {[%emt
00:00:21]} 2. Nf3 {[%clk 01:31:23]} {[%emt 00:00:04]} Nc6 {[%clk 01:30:51]}
{[%emt 00:00:17]} 3. b4 {[%clk 01:31:49]} {[%emt 00:00:04]} Nxb4 {[%clk
01:23:46]} {[%emt 00:07:34]} 4. c3 {[%clk 01:32:15]} {[%emt 00:00:05]} Nc6
{[%clk 01:23:46]} {[%emt 00:00:30]} 5. d4 {[%clk 01:32:40]} {[%emt 00:00:05]}
d5 {[%clk 01:21:40]} {[%emt 00:02:36]} 6. e5 {[%clk 01:29:39]} {[%emt
00:03:31]} Bg4 {[%clk 01:20:17]} {[%emt 00:01:53]} 7. Nbd2 {[%clk 01:26:51]}
{[%emt 00:03:19]} cxd4 {[%clk 01:19:17]} {[%emt 00:01:29]} 8. cxd4 {[%clk
01:27:13]} {[%emt 00:00:08]} e6 {[%clk 01:18:05]} {[%emt 00:01:41]} 9. Rb1
{[%clk 01:23:20]} {[%emt 00:04:23]} Rb8 {[%clk 01:11:18]} {[%emt 00:07:17]} 10.
Bb5 {[%clk 01:19:01]} {[%emt 00:04:50]} Bf5 {[%clk 01:08:48]} {[%emt 00:02:59]}
11. Bxc6+ {[%clk 01:08:30]} {[%emt 00:11:01]} bxc6 {[%clk 01:09:05]} {[%emt
00:00:12]} 12. Rxb8 {[%clk 01:08:57]} {[%emt 00:00:04]} Qxb8 {[%clk 01:09:24]}
{[%emt 00:00:12]} 13. Qa4 {[%clk 01:09:03]} {[%emt 00:00:24]} Qb6 {[%clk
01:06:26]} {[%emt 00:03:28]} 14. O-O {[%clk 01:07:48]} {[%emt 00:01:46]} Bb4
{[%clk 00:55:55]} {[%emt 00:11:00]} 15. a3 {[%clk 01:07:32]} {[%emt 00:00:46]}
Ba5 {[%clk 00:54:08]} {[%emt 00:02:14]} 16. Nb3 {[%clk 01:03:52]} {[%emt
00:04:14]} Bc2 {[%clk 00:53:48]} {[%emt 00:00:49]} 17. Nfd2 {[%clk 01:04:12]}
{[%emt 00:00:10]} Bxd2 {[%clk 00:53:54]} {[%emt 00:00:23]} 18. Bxd2 {[%clk
01:03:35]} {[%emt 00:01:07]} Bxb3 {[%clk 00:54:03]} {[%emt 00:00:22]} 19. Qb4
{[%clk 01:03:56]} {[%emt 00:00:08]} Qxb4 {[%clk 00:54:23]} {[%emt 00:00:10]} 20.
Bxb4 {[%clk 01:04:23]} {[%emt 00:00:04]} Ne7 {[%clk 00:54:05]} {[%emt
00:00:47]} 21. Rb1 {[%clk 01:04:35]} {[%emt 00:00:19]} Nc8 {[%clk 00:44:41]}
{[%emt 00:09:53]} 22. Rxb3 {[%clk 01:04:22]} {[%emt 00:00:44]} Kd7 {[%clk
00:43:49]} {[%emt 00:01:21]} 23. Ba5 {[%clk 01:02:48]} {[%emt 00:02:05]} Nb6
{[%clk 00:43:51]} {[%emt 00:00:28]} 24. Bxb6 {[%clk 01:02:28]} {[%emt
00:00:51]} Rb8 {[%clk 00:43:57]} {[%emt 00:00:23]} 25. Rf3 {[%clk 00:57:16]}
{[%emt 00:05:42]} Rxb6 {[%clk 00:44:11]} {[%emt 00:00:17]} 26. h4 {[%clk
00:57:40]} {[%emt 00:00:05]} Ke7 {[%clk 00:44:26]} {[%emt 00:00:15]} 27. Rg3
{[%clk 00:56:05]} {[%emt 00:02:05]} g6 {[%clk 00:43:56]} {[%emt 00:01:00]} 28.
Rc3 {[%clk 00:53:35]} {[%emt 00:03:00]} f6 {[%clk 00:41:36]} {[%emt 00:02:50]}
29. f4 {[%clk 00:49:38]} {[%emt 00:04:26]} f5 {[%clk 00:40:44]} {[%emt
00:01:21]} 30. Kf2 {[%clk 00:46:32]} {[%emt 00:03:37]} Kd7 {[%clk 00:40:43]}
{[%emt 00:00:30]} 31. Kg3 {[%clk 00:44:01]} {[%emt 00:03:01]} Rb2 {[%clk
00:40:08]} {[%emt 00:01:05]} 32. Rd3 {[%clk 00:36:07]} {[%emt 00:08:25]} c5
{[%clk 00:34:33]} {[%emt 00:06:05]} 33. dxc5 {[%clk 00:35:17]} {[%emt
00:01:21]} Kc6 {[%clk 00:34:28]} {[%emt 00:00:35]} 34. Kf3 {[%clk 00:33:47]}
{[%emt 00:01:59]} a5 {[%clk 00:32:13]} {[%emt 00:02:44]} 35. Rc3 {[%clk
00:29:36]} {[%emt 00:04:42]} a4 {[%clk 00:30:54]} {[%emt 00:01:50]} 36. Ke3
{[%clk 00:27:27]} {[%emt 00:02:39]} Rxg2 {[%clk 00:30:30]} {[%emt 00:00:53]} 37.
Rc1 {[%clk 00:26:35]} {[%emt 00:01:22]} Rg3+ {[%clk 00:29:55]} {[%emt
00:01:04]} 38. Kd4 {[%clk 00:27:00]} {[%emt 00:00:05]} Rf3 {[%clk 00:29:53]}
{[%emt 00:00:32]} 39. h5 {[%clk 00:26:39]} {[%emt 00:00:51]} Rxf4+ {[%clk
00:30:10]} {[%emt 00:00:14]} 40. Ke3 {[%clk 00:27:04]} {[%emt 00:00:05]} Re4+
{[%clk 00:30:32]} {[%emt 00:00:07]} 41. Kd3 {[%clk 00:27:02]} {[%emt 00:00:32]}
gxh5 {[%clk 00:30:03]} {[%emt 00:00:59]} 42. Rb1 {[%clk 00:26:45]} {[%emt
00:00:47]} Kxc5 {[%clk 00:29:48]} {[%emt 00:00:45]} 43. Rb8 {[%clk 00:26:44]}
{[%emt 00:00:31]} Rxe5 {[%clk 00:29:24]} {[%emt 00:00:54]} 44. Rc8+ {[%clk
00:27:05]} {[%emt 00:00:09]} Kd6 {[%clk 00:29:22]} {[%emt 00:00:28]} 45. Ra8
{[%clk 00:26:56]} {[%emt 00:00:43]} Re4 {[%clk 00:29:35]} {[%emt 00:00:17]} 46.
Ra6+ {[%clk 00:26:55]} {[%emt 00:00:32]} Ke5 {[%clk 00:29:41]} {[%emt
00:00:16]} 47. Ra7 {[%clk 00:27:07]} {[%emt 00:00:26]} Rg4 {[%clk 00:29:22]}
{[%emt 00:00:48]} 48. Rxh7 {[%clk 00:27:23]} {[%emt 00:00:15]} Rg3+ {[%clk
00:29:36]} {[%emt 00:00:16]} 49. Kc2 {[%clk 00:27:42]} {[%emt 00:00:11]} Rxa3
{[%clk 00:29:44]} {[%emt 00:00:22]} 50. Rxh5 {[%clk 00:28:02]} {[%emt
00:00:11]} Rg3 {[%clk 00:30:00]} {[%emt 00:00:12]} 51. Kb2 {[%clk 00:28:15]}
{[%emt 00:00:20]} Ke4 {[%clk 00:30:09]} {[%emt 00:00:20]} 52. Rh2 {[%clk
00:28:06]} {[%emt 00:00:38]} e5 {[%clk 00:30:17]} {[%emt 00:00:23]} 53. Rc2
{[%clk 00:28:27]} {[%emt 00:00:09]} d4 {[%clk 00:30:12]} {[%emt 00:00:34]} 54.
Rc4 {[%clk 00:28:52]} {[%emt 00:00:06]} a3+ {[%clk 00:30:34]} {[%emt 00:00:08]}
55. Ka2 {[%clk 00:29:15]} {[%emt 00:00:07]} f4 {[%clk 00:30:41]} {[%emt
00:14:14]} 56. Ra4 {[%clk 00:29:39]} Rc3 57. Ra8 {[%clk 00:29:58]} f3 {[%clk
00:31:05]} 58. Rh8 {[%clk 00:30:22]} Ke3 {[%clk 00:31:07]} 59. Re8 {[%clk
00:30:39]} e4 {[%clk 00:31:29]} 60. Re7 {[%clk 00:31:06]} f2 {[%clk 00:31:47]}
61. Re8 {[%clk 00:31:31]} Rc2+ {[%clk 00:32:06]} 62. Kb1 {[%clk 00:31:08]}
f1=Q+ {[%clk 00:32:26]} 63. Kxc2 {[%clk 00:31:32]} Qd3+ {[%clk 00:32:43]} 64.
Kc1 {[%clk 00:31:47]} Qd2+ {[%clk 00:33:07]} 65. Kb1 {[%clk 00:32:11]} Qb2#
{[%clk 00:33:05]} 0-1